bitfinex-derivatives/quotes_ETHF0:USTF0_20251210
["timestamp","ask_amount","ask_price","bid_price","bid_amount"]
[1765385531440,3.4947,3369.8,3369.7,0.14838]
[1765385534241,3.4947,3369.4,3369.3,3.2078]
[1765385534438,3.4947,3369.4,3369.3,3.14111514]
[1765385534631,3.2078,3369.5,3368.9,4.94591]
[1765385535037,1.6156,3369.0,3368.9,4.94591]
[1765385535339,1.6156,3369.0,3368.9,0.14841]
[1765385535340,4.1729,3369.0,3368.9,0.14841]
[1765385535542,3.1801,3368.6,3368.5,3.2078]
[1765385535743,3.1801,3368.4,3368.3,0.15289322]
[1765385535935,4.1729,3368.4,3368.3,0.15289322]
[1765385536733,2.6084,3368.4,3368.3,0.15289322]
[1765385536940,4.2006,3369.6,3368.8,1.5897]
[1765385537137,1.5645,3368.8,3368.7,0.14842]
[1765385537335,1.5645,3368.8,3368.5,3.2078]
[1765385537336,3.1801,3368.6,3368.5,3.2078]
[1765385537536,4.1729,3368.4,3368.3,0.00445322]
[1765385538241,3.1801,3368.4,3368.3,0.00445322]
[1765385538446,1.6156,3368.4,3368.3,0.00445322]
[1765385538644,4.1729,3368.4,3368.3,0.00445322]
[1765385540742,10.1729,3368.4,3368.3,0.00445322]
[1765385540947,3.1801,3368.1,3368.0,0.00274431]
[1765385541244,6.3879,3368.1,3368.0,4.431e-05]
[1765385541435,12.3879,3368.1,3368.0,4.431e-05]
[1765385542750,3.1801,3367.3,3367.2,3.2078]
[1765385543051,3.1801,3367.1,3367.0,0.1485]
[1765385544044,3.18326479,3367.1,3367.0,0.15192886]
[1765385545444,3.18326479,3367.1,3367.0,0.00342886]
[1765385545651,3.18326479,3367.1,3367.0,2.886e-05]
[1765385545949,3.18326479,3367.1,3366.7,0.00445322]
[1765385545950,3.1801,3365.8,3365.7,3.2078]
[1765385546150,4.8234,3365.8,3365.4,1.15097]
[1765385546640,3.1801,3365.5,3365.4,1.15097]
[1765385546845,3.1801,3365.5,3365.4,0.15090444]
[1765385548648,3.21225322,3365.8,3365.4,2.99630444]
[1765385548649,0.00445322,3365.8,3365.4,2.99630444]
[1765385548947,0.00445322,3365.8,3365.7,3.5469]
[1765385549441,3.2078,3366.9,3366.0,1.0972]
[1765385549637,1.683,3365.8,3365.7,0.14855]
[1765385549843,3.2078,3366.5,3365.8,0.14855]
[1765385550038,6.7326,3365.9,3365.8,0.14855]
[1765385550447,6.7326,3365.9,3365.4,1.09953444]
[1765385550448,3.5248,3365.5,3365.4,0.00233444]
[1765385551153,1.683,3365.5,3365.4,0.00233444]
[1765385551653,3.5248,3365.5,3365.4,0.00233444]
[1765385552050,1.683,3365.5,3365.4,0.15090444]
[1765385552249,3.2078,3365.9,3365.8,1.89675]
[1765385552454,0.00445322,3366.2,3365.8,1.7482]
[1765385553555,0.00445322,3366.2,3366.0,1.24574]
[1765385553752,0.00445322,3366.2,3366.1,3.69544]
[1765385556257,1.68745322,3366.2,3366.1,0.14854]
[1765385556454,1.68745322,3366.2,3366.1,1.89674]
[1765385556757,3.52925322,3366.2,3366.1,0.14854]
[1765385557657,3.52925322,3366.2,3365.5,0.14856]
[1765385557860,3.52925322,3366.2,3365.6,0.14856]
[1765385558049,1.683,3365.8,3365.7,0.14855]
[1765385559163,0.00445322,3366.2,3365.8,0.14855]
[1765385559363,0.00445322,3366.2,3365.9,0.14855]
[1765385559662,1.683,3366.0,3365.9,0.14855]
[1765385560154,1.68745322,3366.2,3366.1,1.89674]
[1765385560358,1.68745322,3366.2,3366.1,0.14854]
[1765385561455,3.52925322,3366.2,3366.1,0.14854]
[1765385562055,3.52925322,3366.2,3365.6,0.14856]
[1765385562056,1.683,3365.7,3365.6,0.14856]
[1765385562261,1.683,3365.7,3365.6,1.89676]
[1765385562654,3.5248,3365.5,3365.4,0.00233444]
[1765385562863,6.7326,3365.5,3365.4,0.00233444]
[1765385563159,3.07092622,3365.5,3365.4,4.79500444]
[1765385563358,1.683,3366.1,3365.4,10.30733444]
[1765385563659,3.5248,3366.1,3365.4,4.30733444]
[1765385564656,3.5248,3366.1,3366.0,0.14854]
[1765385565968,1.683,3366.1,3366.0,1.24574]
[1765385566665,3.21225322,3366.2,3366.1,3.69544]
[1765385566965,0.00445322,3366.2,3366.1,3.69544]
[1765385567369,3.2078,3367.0,3366.7,0.14851]
[1765385567666,4.8908,3367.0,3366.7,0.14851]
[1765385567868,3.2078,3367.0,3366.9,3.5469]
[1765385568171,3.2078,3367.0,3366.9,3.6954]
[1765385568558,6.7326,3367.0,3366.9,0.1485]
[1765385570261,6.7326,3367.0,3366.3,3.2078]
[1765385570262,1.683,3366.4,3366.3,3.2078]
[1765385570565,3.5248,3366.4,3366.3,3.2078]
[1765385570769,3.5248,3366.3,3366.2,0.14853]
[1765385573372,1.683,3365.6,3365.5,3.2078]
[1765385573671,3.2078,3366.2,3365.6,0.14856]
[1765385574667,3.5248,3365.7,3365.6,0.14856]
[1765385575271,3.2078,3366.2,3365.6,0.14856]
[1765385575475,1.683,3365.7,3365.6,0.14856]
[1765385575767,3.2078,3366.2,3365.7,0.14855]
[1765385575969,3.2078,3366.2,3365.6,1.7482]
[1765385575970,4.8908,3366.2,3366.1,1.89674]
[1765385576175,6.7326,3366.2,3366.1,0.14854]
[1765385577270,3.5248,3365.6,3365.5,0.14856]
[1765385578271,3.3589,3365.5,3365.4,0.00233444]
[1765385580772,3.3589,3365.5,3365.4,1.00163444]
[1765385581877,3.3589,3365.5,3365.4,0.00233444]
[1765385582075,3.3589,3365.5,3364.4,4.45027863]
[1765385582076,3.3251,3364.5,3364.4,4.45027863]
[1765385582282,6.5329,3364.5,3364.4,1.24247863]
[1765385582469,6.5329,3364.5,3364.4,1.06389467]
[1765385582673,0.8535,3363.7,3363.5,3.35645]
[1765385582979,0.8369,3363.7,3363.5,3.35645]
[1765385583276,0.8369,3363.7,3363.6,0.00318944]
[1765385583277,1.67749641,3363.7,3363.6,0.00318944]
[1765385583980,4.88529641,3363.7,3363.6,0.00318944]
[1765385584371,4.88529641,3363.7,3363.3,0.00445322]
[1765385584372,2.0396,3363.4,3363.3,0.00445322]
[1765385584572,2.0332,3362.9,3362.8,0.14868]
[1765385584980,1.0121,3362.6,3362.5,0.9993]
[1765385585280,1.0121,3362.6,3362.3,3.2078]
[1765385585281,1.9898,3362.4,3362.3,3.2078]
[1765385585477,3.2078,3363.1,3362.3,3.2078]
[1765385585478,3.2078,3363.1,3363.0,0.9993]
[1765385585671,35.80369641,3363.7,3363.0,0.9993]
[1765385585672,0.00369641,3363.7,3363.0,4.2561]
[1765385585876,0.00369641,3363.7,3363.6,0.9993]
[1765385585877,0.98269641,3363.7,3363.6,0.9993]
[1765385586083,0.00369641,3363.7,3363.6,0.9993]
[1765385586274,0.00369641,3363.7,3363.6,2.6022]
[1765385586679,0.00369641,3363.7,3363.6,4.2561]
[1765385586975,0.00369641,3363.7,3363.6,4.40475]
[1765385587787,0.96559641,3363.7,3363.6,1.14795]
[1765385588081,0.00369641,3363.7,3363.6,2.75085]
[1765385588283,0.00369641,3363.7,3363.6,4.40475]
[1765385588479,3.2078,3364.4,3363.6,4.40475]
[1765385588480,3.2078,3364.4,3364.2,0.9993]
[1765385588679,1.8898,3364.3,3364.2,0.9993]
[1765385588872,0.9279,3363.7,3363.6,0.9993]
[1765385589381,3.2078,3364.4,3363.6,0.9993]
[1765385589581,0.9301654,3363.7,3363.6,0.9993]
[1765385589780,1.8580654,3363.7,3363.6,0.9993]
[1765385590278,1.8580654,3363.7,3363.1,3.2078]
[1765385590279,1.8402,3363.6,3363.1,3.2078]
[1765385590677,0.0022654,3363.7,3363.1,4.8107]
[1765385591078,0.8985654,3363.7,3363.6,1.0072]
[1765385591275,1.7948654,3363.7,3363.1,3.2078]
[1765385591479,1.7948654,3363.7,3363.0,1.14797]
[1765385591480,0.8963,3363.2,3363.0,1.14797]
[1765385591680,0.8963,3363.1,3363.0,1.14797]
[1765385591887,0.0022654,3363.7,3363.0,2.71037]
[1765385592086,0.0022654,3363.7,3363.6,4.26615]
[1765385592286,1.7612654,3363.7,3363.6,1.15585]
[1765385592582,1.7612654,3363.7,3363.0,0.9993]
[1765385592788,0.8795,3363.1,3363.0,0.9993]
[1765385593192,0.0022654,3363.7,3363.6,4.1175]
[1765385593388,0.0022654,3363.7,3363.6,4.26615]
[1765385596881,0.7985654,3363.7,3363.6,1.0072]
[1765385597082,0.0022654,3363.7,3363.6,2.5696]
[1765385597491,0.0022654,3363.7,3363.6,4.26615]
[1765385597991,0.7985654,3363.7,3363.6,1.15585]
[1765385598193,1.5783654,3363.7,3363.6,1.15585]
[1765385598690,0.7985654,3363.7,3363.6,1.15585]
[1765385598890,0.0022654,3363.7,3363.6,4.26615]
[1765385599385,3.21226004,3364.0,3363.9,3.1103]
[1765385599386,3.08610148,3364.0,3363.9,3.1103]
[1765385599883,3.08610148,3364.0,3363.8,0.14864]
[1765385599884,1.494,3363.9,3363.8,0.14864]
[1765385600480,0.747,3363.4,3363.3,3.2078]
[1765385600792,1.494,3363.4,3363.3,3.2078]
[1765385600992,0.00241778,3363.9,3363.3,4.7702]
[1765385601491,0.7512,3363.4,3363.3,4.7702]
[1765385601689,0.00241778,3363.9,3363.8,1.5624]
[1765385601889,0.00241778,3363.9,3363.8,5.51195657]
[1765385602190,3.2078,3364.4,3364.3,1.5624]
[1765385602488,3.2078,3364.4,3364.2,1.0072]
[1765385602489,0.7349,3364.3,3364.2,1.0072]
[1765385602691,3.2078,3364.4,3364.3,1.5624]
[1765385603285,3.21071391,3364.4,3364.3,3.1103]
[1765385603992,0.00291391,3364.4,3364.3,5.51193657]
[1765385604188,3.2078,3365.3,3364.3,5.51193657]
[1765385604189,3.2078,3365.3,3365.2,1.5624]
[1765385604687,3.2078,3365.3,3365.2,3.25888]
[1765385604894,3.2078,3365.7,3365.6,1.5624]
[1765385605191,3.2078,3366.1,3365.6,3.1134432]
[1765385605397,3.2078,3367.0,3366.0,9.72685657]
[1765385605693,3.2078,3366.6,3366.2,0.00446004]
[1765385605890,1.4292,3366.3,3366.2,0.00446004]
[1765385606282,1.43223615,3366.3,3366.2,0.00446004]
[1765385606788,0.00303615,3366.3,3366.2,0.00446004]
[1765385606993,0.72913615,3366.3,3366.2,0.00446004]
[1765385607692,0.00303615,3366.3,3366.2,1.56686004]
[1765385608092,0.71253615,3366.3,3366.2,0.00446004]
[1765385608394,1.42203615,3366.3,3366.2,0.00446004]
[1765385609193,0.71253615,3366.3,3366.2,0.00446004]
[1765385609793,0.00303615,3366.3,3366.2,1.58816004]
[1765385609980,1.37343615,3366.3,3366.2,0.00446004]
[1765385610396,0.00303615,3366.3,3366.2,0.00446004]
[1765385610994,0.00303615,3366.3,3366.2,3.34929004]
[1765385612297,3.2078,3366.6,3366.5,1.73222]
[1765385612900,3.8558,3366.6,3366.5,0.14852]
[1765385613399,3.85860428,3366.6,3366.5,0.14852]
[1765385613598,4.49070428,3366.6,3366.2,0.00446004]
[1765385614000,4.4565,3366.3,3366.2,0.00446004]
[1765385614389,4.4565,3366.3,3366.0,0.9242]
[1765385614390,3.2078,3366.3,3366.0,0.9242]
[1765385614694,1.2332,3366.1,3366.0,0.9242]
[1765385616197,1.2022,3365.8,3365.7,0.00446004]
[1765385617099,0.6166,3365.8,3365.7,0.00446004]
[1765385618689,1.1865,3365.8,3365.7,0.00446004]
[1765385619002,1.0927,3365.8,3365.7,0.00446004]
[1765385619199,0.5542,3365.8,3365.7,0.00446004]
[1765385619598,1.0927,3365.8,3365.7,0.00446004]
[1765385619906,3.2078,3365.9,3365.7,0.00446004]
[1765385620102,3.2078,3365.9,3365.8,1.5837]
[1765385620792,3.7307,3365.9,3365.8,1.5837]
[1765385622402,0.5073,3365.8,3365.7,1.58816004]
[1765385622603,3.2078,3365.9,3365.8,1.5837]
[1765385623212,3.6996,3365.9,3365.8,1.5837]
[1765385623402,0.4764,3365.8,3365.7,0.00446004]
[1765385623603,0.4764,3365.8,3365.7,1.58816004]
[1765385623902,3.2078,3365.9,3365.8,1.5837]
[1765385624400,3.2078,3366.3,3365.8,3.34485]
[1765385624598,3.2078,3366.3,3366.0,2.5368]
[1765385625097,0.9066,3366.1,3366.0,0.9242]
[1765385626915,0.4151,3366.1,3366.0,2.5079]
[1765385627211,0.4151,3366.1,3366.0,4.1205]
[1765385627705,3.6229,3366.3,3366.2,1.5837]
[1765385628306,0.3999,3366.1,3366.0,2.65644]
[1765385628509,0.7998,3366.1,3366.0,1.07274]
[1765385628922,0.3999,3366.1,3366.0,4.26904]
[1765385629111,3.2078,3366.3,3366.0,4.26904]
[1765385629715,3.5925,3366.3,3366.2,3.1963]
[1765385629912,0.00446004,3366.4,3366.3,3.34483]
[1765385632911,10.185,3367.4,3366.3,3.34483]
[1765385633112,3.857,3367.6,3367.5,0.9242]
[1765385633320,3.2078,3368.0,3367.5,4.26897]
[1765385634114,3.21053792,3368.0,3367.5,4.26897]
[1765385634313,3.21053792,3368.0,3367.9,1.5837]
[1765385634518,0.3097,3367.9,3367.8,0.14846]
[1765385634818,3.21053792,3368.0,3367.9,1.5837]
[1765385635019,3.21053792,3368.0,3367.9,3.1963]
[1765385635317,0.592,3367.6,3367.5,0.9242]
[1765385635518,0.592,3367.5,3367.4,0.00446004]
[1765385635725,3.7998,3367.5,3367.4,0.00446004]
[1765385638726,3.5038,3367.5,3367.4,1.36516004]
[1765385639228,3.7441,3367.5,3367.4,0.00446004]
[1765385641126,3.5038,3367.5,3367.4,0.00446004]
[1765385641322,3.7149,3367.5,3367.4,0.00446004]
[1765385642028,3.2078,3367.5,3367.4,2.82526004]
[1765385642222,3.4044,3367.5,3367.4,2.82526004]
[1765385642422,3.601,3367.5,3367.4,0.00446004]
[1765385642623,3.4044,3367.5,3367.4,1.36516004]
[1765385642825,3.21053792,3368.0,3367.5,0.8005]
[1765385643030,3.39263792,3368.0,3367.9,1.3607]
[1765385643233,0.3642,3367.7,3367.6,0.14847]
[1765385643425,0.3642,3367.7,3367.5,0.8005]
[1765385643737,0.3642,3367.5,3367.4,0.00446004]
[1765385644327,0.3642,3367.5,3366.9,0.1485]
[1765385644528,3.2078,3367.0,3366.9,2.9693]
[1765385644831,0.1632,3367.6,3367.5,2.1612]
[1765385645229,0.3264,3367.6,3367.5,0.8005]
[1765385645620,3.2078,3367.7,3367.6,2.96927]
[1765385645826,0.00446004,3367.9,3367.8,2.96926]
[1765385647130,1.04802641,3368.1,3368.0,3.6213]
[1765385647930,4.3625,3368.8,3368.7,1.3607]
[1765385648129,4.36614566,3368.8,3368.7,0.00269589]
[1765385648435,5.52084566,3368.8,3368.7,0.00269589]
[1765385651837,6.29056647,3368.8,3368.7,0.00269589]
[1765385652136,2.5376,3368.3,3368.2,0.14844]
[1765385652335,2.5322,3368.1,3368.0,0.8005]
[1765385652535,2.5322,3368.1,3367.6,0.14847]
[1765385652536,3.2078,3368.3,3367.6,2.88647]
[1765385652836,1.2661,3367.7,3367.6,1.47597]
[1765385653036,2.5177,3367.7,3367.6,0.15159962]
[1765385653536,1.2661,3367.7,3367.6,1.47909962]
[1765385653737,1.2516,3367.7,3367.6,2.88959962]
[1765385653939,1.2516,3367.7,3367.6,1.47909962]
[1765385654136,2.4891,3367.7,3367.6,0.15159962]
[1765385655141,2.446,3367.3,3367.2,0.00446004]
[1765385656237,2.446,3367.3,3367.2,0.00806781]
[1765385659540,3.21827457,3367.3,3367.2,0.00806781]
[1765385660435,2.2948,3366.6,3366.5,0.8824]
[1765385661036,2.2948,3366.6,3366.4,0.14852]
[1765385661037,2.2592,3366.5,3366.4,0.14852]
[1765385661638,2.2592,3366.5,3366.4,0.00368749]
[1765385663540,2.2052,3366.5,3366.4,0.00368749]
[1765385665547,2.1492,3366.2,3366.1,0.00445315]
[1765385665751,5.357,3366.2,3366.1,0.00445315]
[1765385666637,5.35927407,3366.2,3366.1,0.00789397]
[1765385669951,4.28467407,3366.2,3366.1,2.74329397]
[1765385670250,0.00227407,3366.2,3366.1,8.89183397]
[1765385670649,3.2078,3366.7,3366.6,2.7354]
[1765385671150,0.992,3366.6,3366.5,2.1453]
[1765385671347,0.00444618,3366.8,3366.7,2.7354]
[1765385671652,0.00762228,3366.8,3366.7,2.7354]
[1765385674645,0.95902228,3366.8,3366.7,2.7354]
[1765385674952,0.95902228,3366.8,3366.7,1.50441]
[1765385675252,0.95902228,3366.8,3366.7,2.88391]
[1765385675750,1.89692228,3366.8,3366.7,0.14851]
[1765385677050,1.8218,3366.3,3366.2,3.05263188]
[1765385677242,1.8218,3366.3,3366.1,0.00789397]
[1765385677243,1.8218,3366.2,3366.1,0.00789397]
[1765385681152,1.7484,3365.6,3365.5,0.14856]
[1765385681349,1.7484,3365.1,3364.9,3.2078]
[1765385681549,0.8742,3365.1,3365.0,2.2383]
[1765385681956,0.8609,3364.7,3364.6,2.884]
[1765385682162,0.00445315,3365.0,3364.6,2.88609478]
[1765385682457,1.7218,3364.7,3364.6,0.15069478]
[1765385682658,1.7218,3364.7,3364.6,0.00209478]
[1765385683456,4.9296,3364.7,3364.6,0.00209478]
[1765385684752,4.9296,3364.7,3363.2,3.2078]
[1765385684753,1.658,3363.6,3363.2,3.2078]
[1765385684962,0.8224,3363.1,3362.8,3.44952925]
[1765385685158,3.2078,3363.5,3363.0,3.5248]
[1765385685353,0.8224,3363.1,3363.0,3.5248]
[1765385685854,0.8261419,3363.1,3363.0,3.52748636]
[1765385686061,0.8261419,3363.1,3363.0,2.14798636]
[1765385686455,1.6364419,3363.1,3363.0,0.79208636]
[1765385686653,4.0339419,3363.1,3363.0,2.14798636]
[1765385687463,4.8442419,3363.1,3363.0,0.79208636]
[1765385688761,4.8442419,3363.1,3363.0,0.00268636]
[1765385688956,4.0339419,3363.1,3363.0,2.14798636]
[1765385689157,4.8050419,3363.1,3363.0,0.79208636]
[1765385689959,4.0339419,3363.1,3363.0,0.79208636]
[1765385690160,3.2115419,3363.1,3363.0,3.52748636]
[1765385690760,3.9697419,3363.1,3363.0,2.14798636]
[1765385691162,3.9697419,3363.1,3363.0,3.52748636]
[1765385692250,0.0037419,3363.1,3363.0,3.67615636]
[1765385694061,1.58767543,3364.9,3363.0,3.67615636]
[1765385694062,3.2078,3364.6,3364.0,2.7354]
[1765385694365,2.6761,3364.1,3364.0,1.3559]
[1765385694562,0.7809,3364.5,3363.8,5.9432]
[1765385694768,2.6761,3363.9,3363.8,3.2078]
[1765385694959,0.00249716,3363.9,3363.5,2.88405]
[1765385695656,0.00249716,3363.9,3363.5,1.52815]
[1765385695856,2.67859716,3363.9,3363.8,1.3559]
[1765385696257,2.67859716,3363.9,3363.8,2.7354]
[1765385696258,0.00249716,3363.9,3363.8,2.7354]
[1765385696757,2.6761,3363.8,3363.7,0.14864]
[1765385696964,2.6761,3363.5,3363.4,3.2078]
[1765385697366,1.297,3363.5,3363.4,4.5637]
[1765385697665,1.297,3363.6,3363.5,2.7354]
[1765385698557,1.297,3363.6,3363.5,2.88405]
[1765385699063,1.3502,3363.6,3363.5,2.84425]
[1765385699867,2.7298,3363.6,3363.5,0.14865]
[1765385701162,0.00249716,3363.9,3363.5,2.84425]
[1765385701358,1.3502,3363.6,3363.5,2.84425]
[1765385701571,2.7298,3363.6,3363.5,0.14865]
[1765385701962,3.5453,3363.5,3363.4,3.2078]
[1765385702359,2.7298,3363.5,3363.4,4.5894]
[1765385702570,2.7298,3363.1,3363.0,0.00268636]
[1765385702768,2.7298,3363.1,3363.0,1.38428636]
[1765385702964,1.3502,3363.1,3363.0,2.69828636]
[1765385703163,4.0233,3363.5,3363.0,2.69828636]
[1765385703467,1.3502,3363.1,3363.0,2.69828636]
[1765385703667,2.7298,3363.1,3363.0,1.38428636]
[1765385703862,4.0233,3363.5,3363.0,2.84695636]
[1765385704468,2.7298,3363.1,3363.0,0.15135636]
[1765385704769,1.3502,3363.1,3363.0,2.84695636]
[1765385705272,2.7298,3363.1,3363.0,2.84695636]
[1765385705969,4.0233,3363.5,3363.0,3.65745636]
[1765385706979,2.7298,3363.1,3363.0,0.00268636]
[1765385707173,6.71145354,3363.1,3363.0,0.00268636]
[1765385707768,6.71789952,3363.1,3363.0,0.00268636]
[1765385708976,3.51009952,3363.1,3363.0,0.00268636]
[1765385709578,2.13049952,3363.1,3363.0,2.63498636]
[1765385709776,3.43499952,3363.1,3363.0,1.38428636]
[1765385710374,2.13049952,3363.1,3363.0,2.63498636]
[1765385710570,0.78029952,3363.1,3363.0,3.39988636]
[1765385710776,3.2078,3363.5,3363.4,2.5301]
[1765385710974,5.25078958,3363.5,3363.4,2.5301]
[1765385711376,0.78198958,3363.5,3363.4,2.5301]
[1765385713271,0.78198958,3363.5,3363.4,2.67876]
[1765385714575,0.78198958,3363.5,3363.3,3.2078]
[1765385714576,2.5655,3363.4,3363.3,3.2078]
[1765385714780,2.5655,3363.4,3363.0,0.00268636]
[1765385714781,2.5655,3363.1,3363.0,0.00268636]
[1765385714985,3.34748958,3363.1,3363.0,0.00268636]
[1765385715980,2.04298958,3363.1,3363.0,2.53278636]
[1765385716275,0.78198958,3363.1,3363.0,2.53278636]
[1765385717380,3.34748958,3363.1,3363.0,1.28208636]
[1765385717570,0.78198958,3363.1,3363.0,3.29768636]
[1765385718274,0.78198958,3363.1,3363.0,2.53278636]
[1765385718578,0.78198958,3363.1,3363.0,2.68145636]
[1765385718777,0.78198958,3363.4,3363.0,2.68145636]
[1765385719077,3.34748958,3363.3,3363.2,1.2794]
[1765385719285,2.5655,3363.1,3363.0,0.15135636]
[1765385719585,3.34748958,3363.1,3363.0,0.15135636]
[1765385719778,3.34748958,3363.1,3363.0,1.43075636]
[1765385720384,3.34748958,3363.1,3363.0,0.15135636]
[1765385721980,0.78198958,3363.1,3363.0,3.43685636]
[1765385723280,3.34748958,3363.1,3363.0,0.15135636]
[1765385723471,3.34748958,3363.1,3363.0,1.43075636]
[1765385723669,3.34748958,3363.1,3363.0,0.15135636]
[1765385723882,3.34748958,3363.1,3363.0,1.43075636]
[1765385724575,0.78198958,3363.1,3363.0,2.68145636]
[1765385724780,2.07003874,3363.4,3363.3,1.2794]
[1765385724982,0.80903874,3363.4,3363.3,2.5301]
[1765385725279,2.5655,3363.1,3363.0,0.00268636]
[1765385725480,3.37453874,3363.1,3363.0,0.00268636]
[1765385726182,3.37453874,3363.1,3363.0,1.28208636]
[1765385726481,3.37453874,3363.1,3363.0,0.00268636]
[1765385727384,3.37453874,3363.1,3363.0,1.28208636]
[1765385728283,3.37453874,3363.1,3363.0,0.00268636]
[1765385730178,4.96221417,3363.1,3363.0,0.00268636]
[1765385730387,2.482,3362.3,3362.2,3.2078]
[1765385730582,3.29103874,3362.3,3362.2,3.2078]
[1765385730971,3.29103874,3362.3,3362.2,4.4415]
[1765385731177,3.29103874,3362.3,3362.2,3.2078]
[1765385731372,3.29103874,3362.3,3362.2,5.67544535]
[1765385731572,0.80903874,3362.3,3362.2,5.67544535]
[1765385731776,2.482,3362.5,3362.4,1.2337]
[1765385731978,3.29169597,3362.5,3362.4,1.2337]
[1765385732181,2.01419597,3362.5,3362.4,2.4644]
[1765385732687,3.29169597,3362.5,3362.4,1.2337]
[1765385733482,1.2045,3362.3,3362.2,5.82415535]
[1765385735087,2.482,3362.3,3362.2,4.44474535]
[1765385735489,1.2045,3362.3,3362.2,5.67544535]
[1765385735780,2.482,3362.3,3362.2,3.21104535]
[1765385736488,2.482,3362.3,3362.2,4.44474535]
[1765385736685,2.482,3362.3,3362.2,3.21104535]
[1765385736983,2.482,3362.3,3361.1,4.672]
[1765385736984,2.482,3361.5,3361.4,3.2078]
[1765385737184,3.191,3361.5,3361.4,3.2078]
[1765385737481,0.709,3362.0,3361.4,5.6722]
[1765385737686,3.2927867,3361.9,3361.8,1.2337]
[1765385737880,2.01784889,3361.9,3361.8,2.4666586]
[1765385738083,3.29534889,3361.9,3361.8,0.0022586]
[1765385738281,2.48456219,3361.9,3361.8,0.0022586]
[1765385738890,2.48456219,3361.9,3361.8,1.2359586]
[1765385739189,0.00256219,3361.9,3361.8,2.6153886]
[1765385740588,1.20706219,3361.9,3361.8,1.3846886]
[1765385740791,1.20706219,3361.9,3361.8,2.6153886]
[1765385741086,2.48456219,3361.9,3361.8,1.3846886]
[1765385741692,1.20706219,3361.9,3361.8,2.6153886]
[1765385742092,0.00256219,3361.9,3361.8,2.6153886]
[1765385742390,0.00256219,3361.9,3361.8,5.8231886]
[1765385742786,2.48456219,3361.9,3361.8,4.5924886]
[1765385742982,2.48456219,3361.9,3361.8,3.3587886]
[1765385743991,2.48456219,3361.9,3361.8,3.2100586]
[1765385745589,2.48456219,3361.9,3361.8,5.6744586]
[1765385745791,2.48456219,3361.9,3361.8,0.0022586]
[1765385746191,3.29441997,3361.9,3361.8,0.0022586]
[1765385750190,2.482,3361.4,3361.3,1.38245]
[1765385750397,3.2078,3361.7,3361.3,2.61315]
[1765385750596,2.482,3361.7,3361.6,2.4644]
[1765385750792,1.20706219,3361.9,3361.8,2.4644]
[1765385751097,1.20706219,3361.9,3361.8,5.67535891]
[1765385751284,1.20706219,3361.9,3361.5,0.00297798]
[1765385751285,2.48456219,3361.9,3361.5,0.00297798]
[1765385751484,2.48456219,3361.9,3360.6,0.14878]
[1765385751485,2.482,3360.7,3360.6,3.2078]
[1765385751694,2.482,3360.7,3360.0,0.89631]
[1765385751695,1.2045,3360.1,3360.0,2.61321]
[1765385751894,3.9168,3360.5,3360.0,2.61321]
[1765385752299,3.9168,3360.5,3360.0,2.4644]
[1765385752600,1.2045,3360.1,3360.0,2.46751469]
[1765385753499,4.4123,3360.5,3360.4,2.4644]
[1765385753894,2.482,3359.9,3359.8,3.2078]
[1765385754206,2.482,3359.9,3359.1,3.2078]
[1765385754207,0.709,3359.5,3359.1,3.2078]
[1765385754496,2.482,3359.2,3359.1,3.2078]
[1765385754688,0.709,3359.5,3358.0,0.7475]
[1765385754689,1.2045,3358.8,3358.7,4.4415]
[1765385754897,2.48585876,3358.8,3358.7,0.00258972]
[1765385755403,1.51960029,3358.8,3357.8,1.2337]
[1765385755704,3.2078,3358.4,3357.8,1.2337]
[1765385756299,2.482,3357.7,3357.2,3.2078]
[1765385756498,2.482,3357.7,3357.2,3.21013886]
[1765385757001,3.2078,3358.0,3357.6,2.4644]
[1765385757499,3.2078,3358.0,3357.6,1.2337]
[1765385758198,3.2078,3358.4,3357.9,1.2337]
[1765385758594,1.1075,3358.0,3357.9,1.2337]
[1765385758795,1.1075,3358.0,3357.6,3.2078]
[1765385759005,1.1075,3358.0,3357.9,1.1198]
[1765385759198,0.6541,3358.2,3357.6,5.3994]
[1765385759706,2.2178,3357.7,3357.6,3.2078]
[1765385759898,2.2178,3357.3,3357.2,3.21013886]
[1765385760098,2.2178,3357.3,3357.2,0.00233886]
[1765385760798,1.1075,3357.3,3357.2,1.12213886]
[1765385761002,3.2078,3357.5,3357.2,1.12213886]
[1765385761204,3.2078,3357.5,3357.4,1.1198]
[1765385761508,3.2078,3358.1,3358.0,2.1916]
[1765385761708,4.3153,3358.1,3358.0,2.1916]
[1765385761998,3.2078,3358.1,3358.0,2.1916]
[1765385762204,3.2078,3358.1,3357.3,3.35673]
[1765385762205,5.4256,3358.1,3357.3,3.35673]
[1765385762898,1.1075,3357.4,3357.3,3.2078]
[1765385763104,2.2178,3357.4,3357.3,3.2078]
[1765385763502,0.6541,3357.6,3357.3,4.3276]
[1765385763803,3.2078,3358.1,3357.3,4.3276]
[1765385764107,2.2178,3357.4,3357.3,3.2078]
[1765385764606,2.2178,3357.4,3357.2,0.00233886]
[1765385764607,2.2178,3357.3,3357.2,0.00233886]
[1765385765407,3.2078,3357.7,3357.2,2.19393886]
[1765385765610,1.1075,3357.3,3357.2,1.12213886]
[1765385766208,0.6541,3357.6,3357.2,1.12213886]
[1765385766908,3.2078,3357.7,3357.2,1.12213886]
[1765385767104,3.2078,3358.1,3357.6,2.8546]
[1765385767305,2.2178,3357.7,3357.2,3.35906886]
[1765385767519,2.2178,3357.3,3357.2,3.21013886]
[1765385767700,2.2178,3357.3,3357.2,0.00233886]
[1765385769209,2.1714,3357.3,3357.2,0.00233886]
[1765385770413,2.97620088,3357.3,3357.2,0.00233886]
[1765385774110,2.97620088,3357.3,3357.2,1.08683886]
[1765385774610,2.97620088,3357.3,3357.2,0.00233886]
[1765385775708,6.18400088,3357.3,3357.2,0.00233886]
[1765385780206,1.0606,3356.4,3356.3,5.4179]
[1765385780609,2.12896661,3356.7,3356.6,2.2101]
[1765385780915,2.12896661,3356.7,3355.7,2.779]
[1765385780916,2.7527,3355.5,3355.4,3.2078]